bitfinex-derivatives/quotes_ETHF0:USTF0_20241013
["timestamp","ask_amount","ask_price","bid_price","bid_amount"]
[1728804296867,5.33014911,2463.9,2463.8,5.5609617]
[1728804297167,5.33014911,2463.9,2463.8,5.02992776]
[1728804298765,5.73606911,2463.9,2463.8,3.29072776]
[1728804298967,5.73606911,2463.9,2463.8,1.07201073]
[1728804298968,5.74332,2463.9,2463.8,1.07201073]
[1728804299267,5.74332,2463.9,2463.8,1.73229692]
[1728804299268,8.82240985,2463.9,2463.8,1.73229692]
[1728804300768,8.82230477,2463.9,2463.8,1.73229692]
[1728804301072,8.82230477,2463.9,2463.8,1.32]
[1728804301270,8.82230477,2463.9,2463.8,1.85925491]
[1728804302074,8.8222713,2463.9,2463.8,1.85925491]
[1728804303173,8.8222713,2463.9,2463.8,2.51898607]
[1728804303374,6.16933492,2463.9,2463.8,2.51898607]
[1728804303975,4.42332,2463.9,2463.8,2.51898607]
[1728804304377,4.42332,2463.9,2463.8,1.85925491]
[1728804304571,8.8222602,2463.9,2463.8,1.85925491]
[1728804304777,8.82226038,2463.9,2463.8,1.85925491]
[1728804306680,8.82226038,2463.9,2463.8,0.53925491]
[1728804306878,14.20066038,2463.9,2463.8,0.53925491]
[1728804307074,11.547724,2463.9,2463.8,0.53925491]
[1728804307378,11.547724,2463.9,2463.8,0.12693373]
[1728804309682,11.54726262,2463.9,2463.8,0.12693373]
[1728804310983,0.40595,2463.7,2463.5,2.77749726]
[1728804311189,3.2078,2463.6,2463.5,2.77749726]
[1728804311481,3.6045,2463.6,2463.5,3.84926011]
[1728804312589,3.6045,2463.6,2463.5,2.78376285]
[1728804313089,3.6045,2463.6,2463.5,3.84926011]
[1728804313493,3.6045,2463.6,2463.5,2.78376285]
[1728804314888,4.01047,2463.6,2463.5,2.78376285]
[1728804315388,3.6045,2463.6,2463.5,2.78376285]
[1728804315586,5.19556467,2463.6,2463.5,2.78376285]
[1728804316191,5.60153467,2463.6,2463.5,2.78376285]
[1728804316494,6.01523467,2463.6,2463.5,2.78376285]
[1728804317489,6.01523467,2463.6,2463.5,2.12420159]
[1728804318387,5.60926467,2463.6,2463.5,2.12420159]
[1728804319391,5.60926467,2463.6,2463.5,1.712]
[1728804319583,5.60926467,2463.6,2463.5,2.12407201]
[1728804320484,5.19556467,2463.6,2463.5,2.12407201]
[1728804324095,4.79886467,2463.6,2463.5,2.12407201]
[1728804324487,4.79886467,2463.6,2463.5,2.78334685]
[1728804325201,4.79886467,2463.6,2463.5,2.78331882]
[1728804325599,4.79886467,2463.6,2463.5,2.12407201]
[1728804326895,4.79886467,2463.6,2463.5,2.12401226]
[1728804327097,5.20483467,2463.6,2463.5,2.12401226]
[1728804327297,4.79886467,2463.6,2463.5,2.12401226]
[1728804330401,4.79886467,2463.6,2463.5,1.712]
[1728804330697,4.79886467,2463.6,2463.5,1.83894104]
[1728804330898,4.79886467,2463.6,2463.5,2.12401215]
[1728804334194,4.79886467,2463.6,2463.5,2.12402116]
[1728804335103,1.59106467,2463.6,2463.5,2.12402116]
[1728804335706,1.59106467,2463.6,2463.5,2.12403959]
[1728804338202,1.59106467,2463.6,2463.5,2.32714498]
[1728804338409,1.59106467,2463.6,2463.5,2.78342791]
[1728804338606,1.59106467,2463.6,2463.5,2.32714498]
[1728804339201,1.59106467,2463.6,2463.5,2.78346111]
[1728804340507,5.73585933,2463.7,2463.5,2.78346111]
[1728804340708,5.73585933,2463.7,2463.6,0.41203959]
[1728804341610,6.13295933,2463.7,2463.6,0.41203959]
[1728804342817,6.13295933,2463.7,2463.6,0.12694099]
[1728804343113,6.13295933,2463.7,2463.6,0.41221219]
[1728804343509,4.01086,2463.7,2463.6,0.41221219]
[1728804345011,4.01086,2463.7,2463.6,0.2852712]
[1728804345207,4.01086,2463.7,2463.6,0.41221284]
[1728804345402,4.01086,2463.7,2463.6,1.07194128]
[1728804347610,5.75766675,2463.7,2463.6,1.07194128]
[1728804348007,4.01086,2463.7,2463.6,1.07194128]
[1728804348215,8.41045109,2463.7,2463.6,1.07194128]
[1728804348613,4.01086,2463.7,2463.6,1.07194128]
[1728804349418,5.75787314,2463.7,2463.6,1.07194128]
[1728804349717,8.41049731,2463.7,2463.6,1.07194128]
[1728804349911,8.00453731,2463.7,2463.6,1.07194128]
[1728804351414,8.41048731,2463.7,2463.6,1.07194128]
[1728804352321,8.41048731,2463.7,2463.6,2.13743854]
[1728804352812,6.66347417,2463.7,2463.6,2.13743854]
[1728804353117,8.41085525,2463.7,2463.6,2.13743854]
[1728804355715,5.20305525,2463.7,2463.6,2.13743854]
[1728804355911,8.41085525,2463.7,2463.6,2.13743854]
[1728804356110,8.41088434,2463.7,2463.6,2.1380063]
[1728804357715,8.41067232,2463.7,2463.6,2.1380063]
[1728804359723,8.41067232,2463.7,2463.6,2.13801064]
[1728804360419,5.75804815,2463.7,2463.6,0.86940783]
[1728804360621,7.07804815,2463.7,2463.6,0.41249024]
[1728804361226,6.67166367,2463.7,2463.4,1.44809726]
[1728804361419,4.38078034,2463.5,2463.4,1.44809726]
[1728804361622,6.12754401,2463.5,2463.4,2.52041297]
[1728804361926,6.52984401,2463.5,2463.4,2.52041297]
[1728804362123,6.52984401,2463.5,2463.4,1.45491571]
[1728804362327,6.52984401,2463.5,2463.4,1.32799193]
[1728804362528,6.52984401,2463.5,2463.4,1.07431814]
[1728804362827,6.52984401,2463.5,2463.4,1.65797015]
[1728804363016,6.52984401,2463.5,2463.4,0.99814794]
[1728804363424,6.12386401,2463.5,2463.4,0.99814794]
[1728804363728,6.52984401,2463.5,2463.4,0.99814794]
[1728804364326,5.20984401,2463.5,2463.4,0.99814794]
[1728804364528,0.80828,2463.5,2463.4,0.99814794]
[1728804364722,4.80258601,2463.5,2463.4,0.99814794]
[1728804365228,0.4023,2463.5,2463.4,0.99814794]
[1728804365824,2.65480034,2463.6,2463.4,2.31814794]
[1728804366021,2.65480034,2463.6,2463.5,1.60547223]
[1728804366222,4.40015565,2463.6,2463.5,2.45171741]
[1728804366424,4.40015565,2463.6,2463.5,2.7817724]
[1728804367136,6.26856034,2463.7,2463.5,2.78159984]
[1728804367335,3.61376,2463.7,2463.6,0.82475455]
[1728804367541,3.2078,2463.7,2463.6,2.14475455]
[1728804367744,3.2078,2463.7,2463.6,3.86988646]
[1728804367745,5.33009675,2463.7,2463.6,3.86988646]
[1728804368036,3.2078,2463.7,2463.6,5.02927011]
[1728804368436,4.79955343,2463.7,2463.6,5.02927011]
[1728804368740,4.79955343,2463.7,2463.6,6.89252449]
[1728804369439,4.79955343,2463.7,2463.6,5.12307789]
[1728804369440,4.26885385,2463.7,2463.6,5.12307789]
[1728804369740,3.2078,2463.7,2463.6,7.01914053]
[1728804370045,4.26883983,2463.7,2463.6,7.14606716]
[1728804370439,4.26874967,2463.7,2463.6,7.14606716]
[1728804370741,1.06094967,2463.7,2463.6,7.14606716]
[1728804371239,1.06094967,2463.7,2463.6,6.89221389]
[1728804371545,1.06094967,2463.7,2463.6,6.38449535]
[1728804371840,1.06094967,2463.7,2463.6,7.29816673]
[1728804373441,1.06094967,2463.7,2463.6,6.79024503]
[1728804373741,1.06094967,2463.7,2463.6,5.81392792]
[1728804374142,1.06094967,2463.7,2463.6,4.400691]
[1728804374439,1.06094967,2463.7,2463.6,5.55935671]
[1728804375441,1.06094967,2463.7,2463.6,5.55927353]
[1728804376642,1.06094967,2463.7,2463.6,3.96274233]
[1728804376838,1.06094967,2463.7,2463.6,5.55927353]
[1728804377541,1.06094967,2463.7,2463.6,3.96274233]
[1728804380549,1.06094967,2463.7,2463.6,2.8041598]
[1728804380747,1.06094967,2463.7,2463.6,1.7325]
[1728804380951,1.06094967,2463.7,2463.6,2.80358414]
[1728804381150,1.06094967,2463.7,2463.6,1.93558093]
[1728804381352,1.06094967,2463.7,2463.6,1.7325]
[1728804382553,1.06094967,2463.7,2463.6,2.06250638]
[1728804383444,0.79734,2463.8,2463.6,2.06250638]
[1728804383644,0.79734,2463.8,2463.7,1.32]
[1728804383846,0.79734,2463.8,2463.7,1.7318]
[1728804384151,0.3914,2463.8,2463.7,1.7318]
[1728804384543,3.5992,2463.8,2463.7,1.7318]
[1728804385949,0.3914,2463.8,2463.7,1.7318]
[1728804386150,3.5992,2463.8,2463.7,1.7318]
[1728804388550,0.3914,2463.8,2463.7,1.7318]
[1728804388943,3.5992,2463.8,2463.7,1.7318]
[1728804390256,4.65921542,2463.8,2463.7,1.7318]
[1728804392044,4.65921542,2463.8,2463.7,2.14365768]
[1728804392247,1.45141542,2463.8,2463.7,2.14365768]
[1728804392948,4.65921542,2463.8,2463.7,2.14365768]
[1728804395056,4.65921542,2463.8,2463.7,2.14364063]
[1728804396049,4.65921542,2463.8,2463.7,2.80262104]
[1728804396445,1.45141542,2463.8,2463.7,2.80262104]
[1728804396748,4.65921542,2463.8,2463.7,2.80262104]
[1728804397458,4.65921542,2463.8,2463.7,2.34672097]
[1728804397960,4.65921542,2463.8,2463.7,2.14364063]
[1728804398551,4.65921542,2463.8,2463.7,2.14363378]
[1728804398759,1.45141542,2463.8,2463.7,2.14363378]
[1728804399056,4.65921542,2463.8,2463.7,2.14363378]
[1728804399256,1.45141542,2463.8,2463.7,2.14363378]
[1728804399454,4.65921542,2463.8,2463.7,2.14363378]
[1728804399654,4.65921542,2463.8,2463.7,2.34671406]
[1728804400056,4.65921542,2463.8,2463.7,2.14363378]
[1728804400360,4.65921542,2463.8,2463.7,2.80260947]
[1728804400570,3.5992,2463.8,2463.7,2.80260947]
[1728804401061,3.2078,2463.8,2463.7,2.80260947]
[1728804401258,3.2078,2463.8,2463.7,4.27262559]
[1728804401958,1.06001542,2463.9,2463.7,13.92587559]
[1728804402147,1.06001542,2464.0,2463.8,11.15301532]
[1728804402354,1.88601542,2464.2,2463.9,5.55805106]
[1728804402655,2.29188542,2464.2,2464.1,1.32]
[1728804402853,2.29188542,2464.2,2464.1,1.73183378]
[1728804403057,2.29188542,2464.2,2464.1,1.60490805]
[1728804403261,2.29188542,2464.2,2464.1,1.73181458]
[1728804404460,1.23187,2464.2,2464.1,1.73181458]
[1728804409763,2.29188542,2464.2,2464.1,1.73181321]
[1728804413163,2.29188542,2464.2,2464.1,1.32]
[1728804413463,4.14189313,2464.2,2464.1,0.41182775]
[1728804413862,4.14189313,2464.2,2464.0,1.32]
[1728804413863,0.40588,2464.1,2464.0,1.32]
[1728804414063,1.46579531,2464.1,2464.0,1.73185448]
[1728804416866,1.85749531,2464.1,2464.0,1.44691499]
[1728804417165,1.85749531,2464.1,2464.0,1.73184354]
[1728804417365,0.79758,2464.1,2464.0,1.73184354]
[1728804417963,0.79758,2464.1,2464.0,1.73184344]
[1728804419265,2.38760313,2464.1,2464.0,1.73184344]
[1728804419465,0.79758,2464.1,2464.0,1.73184344]
[1728804420469,4.00538,2464.1,2464.0,1.73184344]
[1728804421173,5.59540313,2464.1,2464.0,1.73184344]
[1728804421577,2.38760313,2464.1,2464.0,1.73184344]
[1728804421976,5.59540313,2464.1,2464.0,1.73184344]
[1728804422471,5.18952313,2464.1,2464.0,1.73184344]
[1728804422865,3.2078,2464.1,2464.0,1.73184344]
[1728804423376,3.2078,2464.1,2464.0,1.7318477]
[1728804424171,4.79782313,2464.1,2464.0,1.7318477]
[1728804425273,5.20370313,2464.1,2464.0,1.7318477]
[1728804428381,1.99590313,2464.1,2464.0,1.7318477]
[1728804428878,5.20370313,2464.1,2464.0,1.7318477]
[1728804429278,1.99590313,2464.1,2464.0,1.7318477]
[1728804429472,1.99590313,2464.1,2464.0,1.73188678]
[1728804429473,5.20370313,2464.1,2464.0,1.73188678]
[1728804430579,1.99590313,2464.1,2464.0,1.73188678]
[1728804430781,5.20370313,2464.1,2464.0,1.73188678]
[1728804431186,1.99590313,2464.1,2464.0,1.73188678]
[1728804431983,5.20370313,2464.1,2464.0,1.73188678]
[1728804432483,1.99590313,2464.1,2464.0,1.73188678]
[1728804432984,5.20370313,2464.1,2464.0,1.73188678]
[1728804433980,1.99590313,2464.1,2464.0,1.73188678]
[1728804434177,1.99590313,2464.1,2464.0,1.73188702]
[1728804434492,5.20370313,2464.1,2464.0,1.73188702]
[1728804436713,1.99590313,2464.1,2464.0,1.73188702]
[1728804437814,1.99590313,2464.1,2464.0,1.731999]
[1728804438923,1.59002313,2464.1,2464.0,1.731999]
[1728804439222,1.59002313,2464.1,2464.0,2.39130041]
[1728804439415,1.99590313,2464.1,2464.0,2.39130041]
[1728804440827,1.9970411,2464.1,2464.0,2.39130041]
[1728804441126,0.40588,2464.1,2464.0,2.39130041]
[1728804441518,0.40588,2464.1,2464.0,2.39147002]
[1728804441721,1.59125433,2464.1,2464.0,3.45497523]
[1728804442522,6.55971084,2464.2,2464.0,3.45497523]
[1728804442722,6.55970084,2464.2,2464.1,0.41208897]
[1728804442927,6.55970084,2464.2,2464.1,0.81208897]
[1728804443325,6.55970084,2464.2,2464.1,1.47153935]
[1728804443619,6.55970084,2464.2,2464.1,0.81208897]
[1728804443827,6.55970084,2464.2,2464.1,1.471537]
[1728804444421,6.55970084,2464.2,2464.1,0.4]
[1728804444723,6.55970084,2464.2,2464.1,0.72997099]
[1728804445224,6.55970084,2464.2,2464.1,2.04997099]
[1728804445428,5.32783084,2464.2,2464.1,3.1134762]
[1728804445615,5.32783084,2464.2,2464.1,4.25914737]
[1728804446213,5.32783084,2464.2,2464.1,3.18750521]
[1728804446421,5.32783084,2464.2,2464.1,4.25923509]
[1728804446620,5.32783084,2464.2,2464.1,3.80273814]
[1728804446923,5.32783084,2464.2,2464.1,4.25922969]
[1728804447119,2.12003084,2464.2,2464.1,4.25922969]
[1728804447518,5.32783084,2464.2,2464.1,4.25922969]
[1728804448828,5.32783084,2464.2,2464.1,4.25923177]
[1728804449909,5.32783084,2464.2,2464.1,3.92256066]
[1728804450099,5.32783084,2464.2,2464.1,4.25251262]
[1728804450292,3.2078,2464.2,2464.1,4.78510659]
[1728804451400,2.52589084,2464.3,2464.1,4.78510659]
[1728804451702,2.52589084,2464.3,2464.2,2.38500741]
[1728804451891,5.73369084,2464.3,2464.2,2.38500741]
[1728804453997,5.32783084,2464.3,2464.2,2.38500741]
[1728804454298,5.32783084,2464.3,2464.2,2.78910741]
[1728804455394,5.32783084,2464.3,2464.2,3.85433027]
[1728804457099,5.32783084,2464.3,2464.2,2.78932286]
[1728804457398,5.32783084,2464.3,2464.2,3.85431707]
[1728804457993,2.12003084,2464.3,2464.2,3.85431707]
[1728804458201,5.32783084,2464.3,2464.2,3.85431707]
[1728804458400,2.12003084,2464.3,2464.2,3.85431707]
[1728804458697,5.32783084,2464.3,2464.2,3.85431707]
[1728804459397,5.32783084,2464.3,2464.2,3.52436609]
[1728804459703,5.32783084,2464.3,2464.2,3.85431633]
[1728804460197,5.32783084,2464.3,2464.2,3.1192731]
[1728804460399,5.32783084,2464.3,2464.2,3.85425807]
[1728804460904,5.73368084,2464.3,2464.2,3.11927357]
[1728804461201,5.73368084,2464.3,2464.2,3.8542619]
[1728804461999,2.52588084,2464.3,2464.2,3.8542619]
[1728804462199,5.73368084,2464.3,2464.2,3.8542619]
[1728804463008,2.52588084,2464.3,2464.2,3.8542619]
[1728804463301,5.73368084,2464.3,2464.2,3.8542619]
[1728804465104,5.73368084,2464.3,2464.2,2.78903904]
[1728804465504,2.52588084,2464.3,2464.2,3.8542619]
[1728804465698,5.73368084,2464.3,2464.2,3.8542619]
[1728804467205,2.52588084,2464.3,2464.2,3.8542619]
[1728804467606,2.52588084,2464.3,2464.2,2.33672377]
[1728804467906,2.52588084,2464.3,2464.2,2.78900894]
[1728804468101,2.52588084,2464.3,2464.2,3.8542318]
[1728804468408,2.52588084,2464.3,2464.2,2.78900894]
[1728804469303,2.52588084,2464.3,2464.2,2.50633617]
[1728804469500,2.52588084,2464.3,2464.2,2.33670514]
[1728804471806,2.52588084,2464.3,2464.2,1.7241]
[1728804472002,2.52588084,2464.3,2464.2,2.33671074]
[1728804472307,2.52588084,2464.3,2464.2,2.78900825]
[1728804472508,2.12003084,2464.3,2464.2,2.33671074]
[1728804472809,2.52588084,2464.3,2464.2,2.78900962]
[1728804475715,2.52588084,2464.3,2464.2,2.78904203]
[1728804476801,2.52588084,2464.3,2464.2,3.85426489]
[1728804477211,2.52588084,2464.3,2464.2,2.78904203]
[1728804478310,2.52588084,2464.3,2464.2,3.85426489]
[1728804479312,2.52588084,2464.3,2464.2,2.78932286]
[1728804479503,2.52588084,2464.3,2464.2,2.58606011]
[1728804479707,0.80065,2464.3,2464.2,0.40960326]
[1728804479908,5.58768671,2464.3,2464.2,0.40960326]
[1728804480210,5.58768671,2464.3,2464.2,1.72960326]
[1728804480808,2.93766949,2464.3,2464.2,1.72960326]
[1728804481012,5.58769807,2464.3,2464.2,1.72960326]
[1728804481404,2.93765952,2464.3,2464.2,1.72960326]
[1728804481709,5.58769807,2464.3,2464.2,1.72960326]
[1728804481909,5.58769807,2464.3,2464.2,1.60269905]
[1728804482309,5.58769807,2464.3,2464.2,1.44690916]
[1728804482511,1.73300952,2464.3,2464.2,1.85653431]
[1728804482712,2.12271477,2464.3,2464.2,3.96450178]
[1728804485707,2.12271477,2464.3,2464.2,2.89942966]
[1728804485915,2.12271477,2464.3,2464.2,3.83765938]
[1728804488016,2.12271477,2464.3,2464.2,4.99727367]
[1728804488518,6.26367855,2464.4,2464.2,4.99727367]
[1728804488719,6.26367855,2464.4,2464.3,1.93269979]
[1728804488922,7.99774634,2464.4,2464.3,1.93269979]
[1728804489112,7.99774634,2464.4,2464.3,2.38523082]
[1728804489510,7.99774634,2464.4,2464.3,2.38533444]
[1728804490219,7.99774634,2464.4,2464.3,3.4505573]
[1728804490424,7.59190634,2464.4,2464.3,3.4505573]
[1728804490926,7.99773634,2464.4,2464.3,3.4505573]
[1728804491823,7.99773634,2464.4,2464.3,2.38533444]
[1728804493318,7.99773634,2464.4,2464.3,3.45058417]
[1728804493519,7.59190634,2464.4,2464.3,3.45058417]
[1728804495024,7.59213441,2464.4,2464.3,3.45058417]
[1728804495919,4.94209586,2464.4,2464.3,3.45058417]
[1728804496125,3.2078,2464.4,2464.3,4.61038544]
[1728804496328,5.33194485,2464.4,2464.3,4.05275949]
[1728804496721,5.33194485,2464.4,2464.3,3.19043687]
[1728804496928,5.33198325,2464.4,2464.3,3.54509442]
[1728804497129,5.33198325,2464.4,2464.3,4.05269114]
[1728804500230,5.73781325,2464.4,2464.3,3.54509442]
[1728804500422,5.73781325,2464.4,2464.3,3.54509579]
[1728804501532,5.33198325,2464.4,2464.3,3.54509579]
[1728804503125,5.33198325,2464.4,2464.3,4.61055559]
[1728804504034,5.33198325,2464.4,2464.3,3.54526107]
[1728804504236,5.33198325,2464.4,2464.3,4.61656537]
[1728804504534,5.33198325,2464.4,2464.3,3.55110557]
[1728804504933,5.33198325,2464.4,2464.3,4.61652756]
[1728804505634,5.33198325,2464.4,2464.3,3.12067786]
[1728804505835,3.61363,2464.4,2464.3,2.13061992]
[1728804506135,3.61363,2464.4,2464.3,1.06542199]
[1728804506338,7.98529806,2464.4,2464.3,0.61272802]
[1728804506634,9.30529806,2464.4,2464.3,0.40968055]
[1728804506835,9.71489806,2464.4,2464.3,0.40968055]
[1728804507538,8.39489806,2464.4,2464.3,0.40968055]
[1728804508035,4.78126806,2464.4,2464.2,2.38542199]
[1728804508332,4.02265,2464.3,2464.2,2.38542199]
[1728804508522,4.02265,2464.3,2464.2,3.45058882]
[1728804511029,0.81485,2464.3,2464.2,3.45058882]
[1728804511237,3.6168,2464.3,2464.2,3.45058882]
[1728804511744,3.6168,2464.3,2464.2,2.38542199]
[1728804512235,3.6168,2464.3,2464.2,3.45055007]
[1728804513032,0.409,2464.3,2464.2,3.45055007]
[1728804513237,3.6168,2464.3,2464.2,3.45055007]
[1728804513540,0.409,2464.3,2464.2,3.45055007]
[1728804513832,3.6168,2464.3,2464.2,3.45055007]
[1728804514441,5.74078012,2464.3,2464.2,3.45055007]
[1728804515243,2.53298012,2464.3,2464.2,3.45055007]
[1728804515434,5.74078012,2464.3,2464.2,2.38542199]
[1728804515741,5.74078012,2464.3,2464.2,3.4505169]
[1728804518036,2.53298012,2464.3,2464.2,3.4505169]
[1728804518238,3.6168,2464.3,2464.2,2.38509491]
[1728804518840,0.409,2464.3,2464.2,2.38509491]
[1728804519039,3.6168,2464.3,2464.2,2.38509491]
[1728804519341,0.409,2464.3,2464.2,2.38509491]
[1728804519554,3.6168,2464.3,2464.2,2.38509491]
[1728804519842,0.409,2464.3,2464.2,2.38509491]
[1728804520043,3.6168,2464.3,2464.2,2.38509491]
[1728804520436,0.409,2464.3,2464.2,2.38509491]
[1728804520738,3.6168,2464.3,2464.2,2.38509491]
[1728804520933,0.409,2464.3,2464.2,2.38509491]
[1728804521735,3.6168,2464.3,2464.2,2.38509491]
[1728804521935,3.6168,2464.3,2464.2,1.93268822]
[1728804522341,0.409,2464.3,2464.2,1.93268822]
[1728804523136,3.6168,2464.3,2464.2,1.64995825]
[1728804523346,3.6168,2464.3,2464.2,1.9326778]
[1728804523545,0.409,2464.3,2464.2,1.9326778]
[1728804524846,3.6168,2464.3,2464.2,1.9326778]
[1728804525545,0.409,2464.3,2464.2,1.9326778]
[1728804525945,3.2078,2464.3,2464.2,1.9326778]
[1728804526250,5.33167913,2464.3,2464.2,5.03219999]
[1728804526840,5.33167913,2464.3,2464.2,3.9671372]
[1728804527042,5.33167913,2464.3,2464.2,5.03218506]
[1728804528043,2.12387913,2464.3,2464.2,5.03218506]
[1728804528238,5.33167913,2464.3,2464.2,3.86646985]
[1728804528450,5.33167913,2464.3,2464.2,5.03221748]
[1728804530542,5.33167913,2464.3,2464.2,3.96716962]
[1728804530748,5.33167913,2464.3,2464.2,5.03221966]
[1728804531447,2.12387913,2464.3,2464.2,5.03221966]
[1728804531648,5.33167913,2464.3,2464.2,5.03221966]
[1728804533060,5.33167913,2464.3,2464.2,3.86647203]
[1728804533252,5.33167913,2464.3,2464.2,5.03220581]
[1728804533552,2.12387913,2464.3,2464.2,5.03220581]
[1728804534254,5.33167913,2464.3,2464.2,5.03220581]
[1728804534648,2.12387913,2464.3,2464.2,5.03220121]
[1728804535044,5.33167913,2464.3,2464.2,5.03220121]
[1728804536057,5.33167913,2464.3,2464.2,5.03220231]
[1728804536454,5.33167913,2464.3,2464.2,3.96678032]
[1728804536649,5.33167913,2464.3,2464.2,5.03203881]
[1728804537851,5.33167913,2464.3,2464.2,3.86629618]
[1728804538058,5.33167913,2464.3,2464.2,5.03200618]
[1728804540464,2.12387913,2464.3,2464.2,5.03200618]
[1728804540760,5.33167913,2464.3,2464.2,5.03200618]
[1728804541361,5.33167913,2464.3,2464.2,5.03197215]
[1728804543862,2.12387913,2464.3,2464.2,3.96671366]
[1728804544068,2.12387913,2464.3,2464.2,5.03195865]
[1728804544565,2.12387913,2464.3,2464.2,3.96670287]
[1728804544867,2.12387913,2464.3,2464.2,5.56280205]
[1728804545550,2.12387913,2464.3,2464.2,3.96670287]
[1728804546258,2.12387913,2464.3,2464.2,3.96675286]
[1728804547364,2.12387913,2464.3,2464.2,5.56285204]
[1728804547557,2.12387913,2464.3,2464.2,5.23290449]
[1728804547759,2.12387913,2464.3,2464.2,3.96678356]
[1728804548663,2.12387913,2464.3,2464.2,5.56288274]
[1728804549057,2.12387913,2464.3,2464.2,3.96678356]
[1728804549258,2.12387913,2464.3,2464.2,5.03208579]
[1728804549459,2.12387913,2464.3,2464.2,3.96678356]
[1728804550061,2.12387913,2464.3,2464.2,5.03208726]
[1728804550269,2.12387913,2464.3,2464.2,5.03209809]
[1728804550567,2.12387913,2464.3,2464.2,3.96678356]
[1728804551073,2.12387913,2464.3,2464.2,3.96682195]
[1728804551467,2.12387913,2464.3,2464.2,3.96682025]
[1728804551863,2.12387913,2464.3,2464.2,5.03215191]
[1728804554465,2.51217913,2464.3,2464.2,5.03215191]
[1728804554961,2.51217913,2464.3,2464.2,5.03215624]
[1728804555162,2.51217913,2464.3,2464.2,3.96709601]
[1728804555370,2.51217913,2464.3,2464.2,3.96687104]
[1728804555763,2.51217913,2464.3,2464.2,3.96690345]
[1728804556170,2.51217913,2464.3,2464.2,5.03224968]
[1728804559163,2.51217913,2464.3,2464.2,5.56300263]
[1728804559763,2.51217913,2464.3,2464.2,5.81680742]
[1728804560369,2.51217913,2464.3,2464.2,5.56300263]
[1728804561573,2.51217913,2464.3,2464.2,5.81680749]
[1728804561871,2.51217913,2464.3,2464.2,5.56300263]
[1728804562269,2.51217913,2464.3,2464.2,5.81680783]
[1728804562872,2.51217913,2464.3,2464.2,5.81680616]
[1728804563467,2.51217913,2464.3,2464.2,5.56300096]
[1728804563770,2.51217913,2464.3,2464.2,5.81680616]
[1728804564368,2.51217913,2464.3,2464.2,5.56300096]
[1728804564567,2.51217913,2464.3,2464.2,6.32441898]
[1728804565477,2.51217913,2464.3,2464.2,6.32715201]
[1728804566273,2.51217913,2464.3,2464.2,4.50062661]
[1728804566474,2.51217913,2464.3,2464.2,5.69275954]
[1728804566675,2.51217913,2464.3,2464.2,4.62752978]
[1728804566970,2.51217913,2464.3,2464.2,4.88133613]
[1728804567165,2.51217913,2464.3,2464.2,6.58107606]
[1728804567567,2.51217913,2464.3,2464.2,6.32726971]
[1728804568068,2.51217913,2464.3,2464.2,6.83488241]
[1728804570177,2.51217913,2464.3,2464.2,6.83506807]
[1728804570380,2.51217913,2464.3,2464.2,5.51603596]
[1728804570568,2.51217913,2464.3,2464.2,6.83520669]
[1728804572475,0.3883,2464.3,2464.2,6.83520669]
[1728804574485,0.3883,2464.3,2464.2,6.83527481]
[1728804575684,0.3883,2464.3,2464.2,6.32765904]
[1728804576478,0.3883,2464.3,2464.2,6.83527381]
[1728804576783,0.3883,2464.3,2464.2,6.32766111]
[1728804577670,0.3883,2464.3,2464.2,5.59218516]
[1728804577874,0.3883,2464.3,2464.2,6.32763293]
[1728804578074,0.3883,2464.3,2464.2,6.3276312]
[1728804578282,0.3883,2464.3,2464.2,4.50081227]
[1728804578579,0.3883,2464.3,2464.2,6.32761857]
[1728804579985,0.3883,2464.3,2464.2,6.32774944]
[1728804581989,0.3883,2464.3,2464.2,5.0085552]
[1728804582189,0.3883,2464.3,2464.2,6.63230616]
[1728804582489,0.3883,2464.3,2464.2,6.32773915]
[1728804583280,0.3883,2464.3,2464.2,5.82012648]
[1728804584584,2.51376838,2464.3,2464.2,6.32773914]
[1728804584785,0.3883,2464.3,2464.2,5.82009366]
[1728804585796,0.3883,2464.3,2464.2,5.8200795]
[1728804586583,2.51373526,2464.3,2464.2,6.32768698]
[1728804586984,2.51373526,2464.3,2464.2,5.8200795]
[1728804587194,2.51373526,2464.3,2464.2,6.32768845]
[1728804587591,2.51373526,2464.3,2464.2,5.8200795]
[1728804587791,2.51373526,2464.3,2464.2,6.32768828]
[1728804587992,2.51373526,2464.3,2464.2,6.32768833]
[1728804588394,0.3883,2464.3,2464.2,5.8200795]
[1728804588794,0.3883,2464.3,2464.2,6.32769265]
[1728804588795,2.51372313,2464.3,2464.2,6.32769265]
[1728804588999,0.3883,2464.3,2464.2,5.8200795]
[1728804589397,0.3883,2464.3,2464.2,4.50091032]
[1728804589599,0.3883,2464.3,2464.2,5.23632054]
[1728804589899,2.51372955,2464.3,2464.2,6.32769141]
[1728804590394,0.3883,2464.3,2464.2,5.56626987]
[1728804590594,2.51370333,2464.3,2464.2,5.56626987]
[1728804590897,0.3883,2464.3,2464.2,5.56626987]
[1728804591093,2.51370501,2464.3,2464.2,5.82007847]
[1728804591299,2.51370501,2464.3,2464.2,6.3276877]
[1728804591796,2.12540501,2464.3,2464.2,6.3276877]
[1728804593299,2.12540501,2464.3,2464.2,5.74392977]
[1728804593603,2.12540501,2464.3,2464.2,6.32767044]
[1728804593807,2.12540501,2464.3,2464.2,6.32765575]
[1728804594499,2.12540501,2464.3,2464.2,5.15884461]
[1728804594701,2.12540501,2464.3,2464.2,6.32763171]
[1728804597296,2.12540501,2464.3,2464.2,5.61698616]
[1728804597503,2.12540501,2464.3,2464.2,6.32763429]
[1728804600099,5.85783855,2464.4,2464.2,6.32763429]
[1728804600304,0.4193,2464.3,2464.2,3.33209918]
[1728804600514,0.4193,2464.3,2464.2,5.82008649]
[1728804600707,0.4193,2464.3,2464.2,5.5662786]
[1728804601407,0.4193,2464.3,2464.2,5.82008706]
[1728804601710,2.54467487,2464.3,2464.2,5.91169849]
[1728804601902,0.8072,2464.3,2464.2,5.1502786]
[1728804602907,0.8072,2464.3,2464.2,3.55418204]
[1728804603113,0.8072,2464.3,2464.2,5.15028122]
[1728804603701,0.8072,2464.3,2464.2,5.15027921]
[1728804604709,0.8072,2464.3,2464.2,3.55418003]
[1728804604904,0.8072,2464.3,2464.2,5.15027921]
[1728804605210,0.8072,2464.3,2464.2,4.6199418]
[1728804606306,2.52483462,2464.3,2464.2,4.6199418]
[1728804606511,0.8072,2464.3,2464.2,4.6199418]
[1728804606814,2.5247867,2464.3,2464.2,4.6199418]
[1728804607511,5.7325867,2464.3,2464.2,3.55457278]
[1728804607712,4.015,2464.3,2464.2,4.61989551]
[1728804608508,0.8072,2464.3,2464.2,4.61989551]
[1728804608907,4.015,2464.3,2464.2,4.61989551]
[1728804609400,0.8072,2464.3,2464.2,4.61989551]
[1728804609816,4.015,2464.3,2464.2,4.61989551]
[1728804610717,4.015,2464.3,2464.2,4.61989571]
[1728804611310,4.015,2464.3,2464.2,3.55457278]
[1728804611513,4.015,2464.3,2464.2,4.61988455]